[Event "Vegagatan O1800 RPD"]
[Site "Goteborgs Schackcentrum, Vegatan 20, Gothenburg, Sweden"]
[Date "2025.05.03"]
[Round "2.2"]
[White "Kaplan, Viktor"]
[Black "Gallardo, Guillermo"]
[Result "1/2-1/2"]
[TimeControl "29 minutes + 30 seconds per move from move one"]
[WhiteFideId "1780956"]
[BlackFideId "1773488"]
[WhiteElo "1822"]
[BlackElo "1779"]

1. d4 {[%clk 00:29:57]} {[%emt 00:00:02]} Nf6 {[%clk 00:29:50]} {[%emt
00:00:10]} 2. c4 {[%clk 00:30:25]} {[%emt 00:00:02]} b6 {[%clk 00:30:15]}
{[%emt 00:00:06]} 3. Nf3 {[%clk 00:30:45]} {[%emt 00:00:09]} Bb7 {[%clk
00:30:40]} {[%emt 00:00:05]} 4. g3 {[%clk 00:30:56]} {[%emt 00:00:20]} e6
{[%clk 00:31:02]} {[%emt 00:00:07]} 5. Bg2 {[%clk 00:31:22]} {[%emt 00:00:04]}
g6 {[%clk 00:30:13]} {[%emt 00:01:20]} 6. Nc3 {[%emt 00:00:32]} Bg7 {[%clk
00:30:37]} {[%emt 00:00:04]} 7. O-O {[%clk 00:31:30]} {[%emt 00:00:21]} O-O
{[%clk 00:30:50]} {[%emt 00:00:17]} 8. d5 {[%clk 00:31:16]} {[%emt 00:00:45]}
exd5 {[%clk 00:30:26]} {[%emt 00:00:54]} 9. cxd5 {[%clk 00:31:36]} {[%emt
00:00:10]} d6 {[%clk 00:30:35]} {[%emt 00:00:20]} 10. e4 {[%clk 00:29:52]}
{[%emt 00:02:14]} Nbd7 {[%clk 00:30:01]} {[%emt 00:01:04]} 11. Nd4 {[%clk
00:29:22]} {[%emt 00:01:00]} Ne5 {[%clk 00:24:14]} {[%emt 00:06:17]} 12. f4
{[%clk 00:26:36]} {[%emt 00:03:15]} Ned7 {[%clk 00:21:28]} {[%emt 00:03:17]} 13.
Be3 {[%clk 00:23:00]} {[%emt 00:04:06]} Nb8 {[%clk 00:17:50]} {[%emt 00:04:08]}
14. Rc1 {[%clk 00:19:43]} {[%emt 00:03:47]} c5 {[%clk 00:17:40]} {[%emt
00:00:40]} 15. dxc6 {[%clk 00:18:15]} {[%emt 00:01:58]} Nxc6 {[%clk 00:17:26]}
{[%emt 00:00:44]} 16. e5 {[%clk 00:18:01]} {[%emt 00:00:45]} Nxd4 {[%clk
00:14:26]} {[%emt 00:03:30]} 17. Bxb7 {[%clk 00:17:39]} {[%emt 00:00:51]} Nf5
{[%clk 00:14:09]} {[%emt 00:00:47]} 18. Bf2 {[%clk 00:15:53]} {[%emt 00:02:17]}
dxe5 {[%clk 00:11:20]} {[%emt 00:03:17]} 19. fxe5 {[%clk 00:13:17]} {[%emt
00:03:08]} Qxd1 {[%clk 00:10:47]} {[%emt 00:01:02]} 20. Rfxd1 {[%clk 00:13:27]}
{[%emt 00:00:20]} Ng4 {[%clk 00:11:09]} {[%emt 00:00:08]} 21. Bxa8 {[%clk
00:13:13]} {[%emt 00:00:44]} Rxa8 {[%clk 00:11:35]} {[%emt 00:00:04]} 22. Nd5
{[%clk 00:08:58]} {[%emt 00:04:46]} Nxe5 {[%clk 00:08:59]} {[%emt 00:03:05]} 23.
Rc7 {[%clk 00:07:46]} {[%emt 00:01:43]} Nf3+ {[%clk 00:07:52]} {[%emt
00:01:37]} 24. Kg2 {[%clk 00:07:36]} {[%emt 00:00:39]} N3d4 {[%clk 00:06:36]}
{[%emt 00:01:46]} 25. Ne7+ {[%clk 00:06:55]} {[%emt 00:01:11]} Nxe7 {[%clk
00:05:09]} {[%emt 00:01:57]} 26. Bxd4 {[%clk 00:04:45]} {[%emt 00:02:40]} Nf5
{[%clk 00:05:05]} {[%emt 00:00:34]} 27. Bxg7 {[%clk 00:02:13]} {[%emt
00:03:01]} Ne3+ {[%clk 00:03:43]} {[%emt 00:01:53]} 28. Kf3 {[%clk 00:02:34]}
{[%emt 00:00:10]} Nxd1 {[%clk 00:04:07]} {[%emt 00:00:06]} 29. Bf6 {[%clk
00:01:51]} {[%emt 00:00:57]} Re8 {[%clk 00:04:32]} {[%emt 00:00:20]} 30. Rxa7
{[%clk 00:01:23]} {[%emt 00:00:58]} Ne3 {[%clk 00:03:52]} {[%emt 00:01:10]} 31.
Re7 {[%clk 00:01:03]} {[%emt 00:00:50]} Rxe7 {[%clk 00:04:07]} {[%emt
00:00:14]} 32. Bxe7 {[%clk 00:01:31]} {[%emt 00:00:03]} Nd5 {[%clk 00:04:36]}
{[%emt 00:00:01]} 33. Bd6 {[%clk 00:01:48]} {[%emt 00:00:13]} f5 {[%clk
00:05:00]} {[%emt 00:00:06]} 34. Ke2 {[%clk 00:01:40]} {[%emt 00:00:38]} Kf7
{[%clk 00:05:28]} {[%emt 00:00:02]} 35. Be5 {[%clk 00:00:49]} {[%emt 00:01:20]}
Ke6 {[%clk 00:05:52]} {[%emt 00:00:07]} 36. Bb8 {[%clk 00:01:12]} {[%emt
00:00:07]} g5 {[%clk 00:06:06]} {[%emt 00:00:16]} 37. Kf3 {[%clk 00:01:29]}
{[%emt 00:00:13]} h5 {[%clk 00:05:22]} {[%emt 00:01:15]} 38. h4 {[%clk
00:01:27]} {[%emt 00:00:31]} gxh4 {[%clk 00:03:55]} {[%emt 00:01:57]} 39. gxh4
{[%clk 00:01:50]} {[%emt 00:00:08]} b5 {[%clk 00:03:25]} {[%emt 00:01:00]} 40.
Bf4 {[%clk 00:01:23]} {[%emt 00:00:57]} Nb4 {[%clk 00:02:44]} {[%emt 00:01:11]}
41. Bd2 {[%clk 00:01:00]} {[%emt 00:00:52]} Nd3 {[%clk 00:02:21]} {[%emt
00:00:54]} 42. Bc3 {[%clk 00:00:51]} {[%emt 00:00:39]} Kd5 {[%clk 00:02:14]}
{[%emt 00:00:37]} 43. Ke3 {[%clk 00:00:56]} {[%emt 00:00:24]} Kc4 {[%clk
00:01:50]} {[%emt 00:00:54]} 44. Bf6 {[%clk 00:01:10]} {[%emt 00:00:16]} f4+
{[%clk 00:00:44]} {[%emt 00:01:36]} 45. Ke2 {[%clk 00:01:01]} {[%emt 00:00:40]}
Nc5 {[%clk 00:01:07]} {[%emt 00:00:07]} 46. Kf3 {[%clk 00:00:49]} {[%emt
00:00:41]} Ne6 {[%clk 00:01:31]} {[%emt 00:00:07]} 47. Be5 {[%clk 00:01:01]}
{[%emt 00:00:16]} Kd3 {[%clk 00:01:02]} {[%emt 00:01:00]} 48. Bxf4 {[%clk
00:01:03]} {[%emt 00:00:28]} Nd4 {[%clk 00:01:30]} {[%emt 00:00:02]} 49. Kf2
{[%clk 00:01:18]} {[%emt 00:00:15]} Nf5 {[%clk 00:01:49]} {[%emt 00:00:12]} 50.
Bg5 {[%clk 00:01:26]} {[%emt 00:00:21]} Nd4 {[%clk 00:02:04]} {[%emt 00:00:16]}
51. Bf6 {[%clk 00:01:48]} {[%emt 00:00:08]} Nf5 {[%clk 00:02:24]} {[%emt
00:00:09]} 52. Kf3 {[%clk 00:02:12]} {[%emt 00:00:06]} Nd6 {[%clk 00:01:31]}
{[%emt 00:01:24]} 53. Kf4 {[%clk 00:02:21]} {[%emt 00:00:19]} Ne4 {[%clk
00:01:31]} {[%emt 00:00:31]} 54. Bg7 {[%clk 00:01:54]} {[%emt 00:00:58]} Nc5
{[%clk 00:00:36]} {[%emt 00:01:25]} 55. Kg5 {[%clk 00:00:55]} {[%emt 00:01:28]}
Ne6+ {[%clk 00:01:00]} {[%emt 00:00:06]} 56. Kh6 {[%clk 00:01:23]} {[%emt
00:00:02]} Nxg7 {[%clk 00:01:23]} {[%emt 00:00:07]} 57. Kxg7 {[%clk 00:01:52]}
Kc2 {[%clk 00:01:50]} {[%emt 00:00:03]} 58. b4 {[%clk 00:02:07]} {[%emt
00:00:16]} Kc3 {[%clk 00:01:59]} {[%emt 00:00:21]} 59. Kg6 {[%clk 00:00:50]}
{[%emt 00:01:47]} Kxb4 {[%clk 00:02:18]} {[%emt 00:00:11]} 60. Kxh5 {[%clk
00:01:18]} {[%emt 00:00:01]} Ka3 {[%clk 00:02:47]} 61. Kg5 {[%clk 00:01:39]}
{[%emt 00:00:08]} Kxa2 {[%clk 00:03:16]} {[%emt 00:00:03]} 62. h5 {[%clk
00:02:08]} b4 {[%clk 00:03:45]} {[%emt 00:00:01]} 63. h6 {[%clk 00:02:37]} b3
{[%clk 00:04:15]} 64. h7 {[%clk 00:03:06]} b2 {[%clk 00:04:44]} {[%emt
00:00:01]} 65. h8=R {[%clk 00:03:31]} {[%emt 00:00:04]} b1=Q {[%clk 00:05:04]}
{[%emt 00:00:06]} 66. Ra8+ {[%clk 00:03:57]} {[%emt 00:00:08]} Kb2 {[%clk
00:05:32]} {[%emt 00:00:02]} 67. Rb8+ {[%clk 00:04:27]} Kc2 {[%clk 00:06:00]}
{[%emt 00:00:02]} 68. Rxb1 {[%clk 00:04:55]} {[%emt 00:00:02]} Kxb1 {[%clk
00:05:56]} {[%emt 00:00:03]} 1/2-1/2

[Event "Vegagatan O1800 RPD"]
[Site "Goteborgs Schackcentrum, Vegatan 20, Gothenburg, Sweden"]
[Date "2025.05.03"]
[Round "2.3"]
[White "Karlsson, Roger"]
[Black "Garby, Jacob"]
[Result "1-0"]
[TimeControl "29 minutes + 30 seconds per move from move one"]
[WhiteFideId "1732293"]
[BlackFideId "1786520"]
[WhiteElo "1886"]
[BlackElo "1820"]

1. d4 {[%clk 00:29:52]} {[%emt 00:00:07]} d5 {[%clk 00:29:52]} {[%emt
00:00:09]} 2. Bg5 {[%clk 00:30:11]} {[%emt 00:00:11]} Nf6 {[%clk 00:29:46]}
{[%emt 00:00:36]} 3. Bxf6 {[%clk 00:30:38]} {[%emt 00:00:03]} exf6 {[%clk
00:30:11]} {[%emt 00:00:05]} 4. e3 {[%clk 00:31:07]} {[%emt 00:00:01]} Nc6
{[%clk 00:29:26]} {[%emt 00:01:16]} 5. c4 {[%clk 00:30:55]} {[%emt 00:00:41]}
Nb4 {[%clk 00:28:21]} {[%emt 00:01:36]} 6. a3 {[%clk 00:30:51]} {[%emt
00:00:34]} Nc6 {[%clk 00:27:58]} {[%emt 00:00:53]} 7. cxd5 {[%clk 00:30:26]}
{[%emt 00:00:54]} Qxd5 {[%clk 00:27:48]} {[%emt 00:00:40]} 8. Nc3 {[%clk
00:30:55]} {[%emt 00:00:02]} Qd8 {[%clk 00:26:51]} {[%emt 00:01:26]} 9. Bb5
{[%clk 00:30:41]} {[%emt 00:00:44]} Bd6 {[%clk 00:25:53]} {[%emt 00:01:28]} 10.
d5 {[%clk 00:30:04]} {[%emt 00:01:07]} a6 {[%clk 00:26:15]} {[%emt 00:00:09]}
11. dxc6 {[%clk 00:29:24]} {[%emt 00:01:09]} axb5 {[%clk 00:26:37]} {[%emt
00:00:08]} 12. Nxb5 {[%clk 00:29:34]} {[%emt 00:00:20]} bxc6 {[%clk 00:26:08]}
{[%emt 00:00:59]} 13. Nc3 {[%clk 00:29:48]} {[%emt 00:00:16]} O-O {[%clk
00:25:37]} {[%emt 00:01:02]} 14. Nge2 {[%clk 00:30:10]} {[%emt 00:00:07]} f5
{[%clk 00:23:37]} {[%emt 00:02:30]} 15. O-O {[%clk 00:26:10]} {[%emt 00:04:30]}
Qh4 {[%clk 00:21:56]} {[%emt 00:02:10]} 16. Ng3 {[%clk 00:24:40]} {[%emt
00:02:00]} Ba6 {[%clk 00:19:12]} {[%emt 00:03:15]} 17. Re1 {[%clk 00:24:47]}
{[%emt 00:00:23]} Rfd8 {[%clk 00:18:47]} {[%emt 00:00:52]} 18. Qf3 {[%clk
00:25:07]} {[%emt 00:00:13]} Bxg3 {[%clk 00:16:24]} {[%emt 00:02:53]} 19. hxg3
{[%clk 00:25:10]} {[%emt 00:00:27]} Qf6 {[%clk 00:16:06]} {[%emt 00:00:48]} 20.
Red1 {[%clk 00:25:01]} {[%emt 00:00:39]} Rd3 {[%clk 00:14:15]} {[%emt
00:02:20]} 21. Rxd3 {[%clk 00:25:10]} {[%emt 00:00:21]} Bxd3 {[%clk 00:14:42]}
{[%emt 00:00:03]} 22. Qf4 {[%clk 00:24:48]} {[%emt 00:00:53]} Qe7 {[%clk
00:09:45]} {[%emt 00:05:27]} 23. Rd1 {[%clk 00:24:06]} {[%emt 00:01:11]} Bc2
{[%clk 00:09:25]} {[%emt 00:00:50]} 24. Rd2 {[%clk 00:24:05]} {[%emt 00:00:31]}
Be4 {[%clk 00:09:16]} {[%emt 00:00:40]} 25. Nxe4 {[%clk 00:24:01]} {[%emt
00:00:34]} fxe4 {[%clk 00:09:13]} {[%emt 00:00:32]} 26. Qf5 {[%clk 00:22:08]}
{[%emt 00:02:22]} Qe6 {[%clk 00:05:40]} {[%emt 00:04:05]} 27. Qxe6 {[%clk
00:20:18]} {[%emt 00:02:20]} fxe6 {[%clk 00:06:07]} {[%emt 00:00:02]} 28. Kf1
{[%clk 00:20:32]} {[%emt 00:00:16]} Ra7 {[%clk 00:05:10]} {[%emt 00:01:28]} 29.
Ke2 {[%clk 00:20:55]} {[%emt 00:00:07]} Kf7 {[%clk 00:05:35]} {[%emt 00:00:05]}
30. Kd1 {[%clk 00:21:23]} {[%emt 00:00:02]} Kf6 {[%clk 00:05:54]} {[%emt
00:00:11]} 31. Kc2 {[%clk 00:21:47]} {[%emt 00:00:06]} Ke5 {[%clk 00:06:18]}
{[%emt 00:00:06]} 32. Rd7 {[%clk 00:22:10]} {[%emt 00:00:06]} Kf6 {[%clk
00:06:32]} {[%emt 00:00:17]} 33. Kb3 {[%clk 00:22:37]} {[%emt 00:00:03]} e5
{[%clk 00:06:34]} {[%emt 00:00:28]} 34. a4 {[%clk 00:22:24]} {[%emt 00:00:43]}
h5 {[%clk 00:06:56]} {[%emt 00:00:08]} 35. Ka3 {[%clk 00:22:51]} {[%emt
00:00:03]} g6 {[%clk 00:07:18]} {[%emt 00:00:08]} 36. b4 {[%clk 00:23:18]}
{[%emt 00:00:03]} Ke6 {[%clk 00:07:42]} {[%emt 00:00:06]} 37. Rd2 {[%clk
00:23:44]} {[%emt 00:00:03]} Ra6 {[%clk 00:07:20]} {[%emt 00:00:53]} 38. Kb3
{[%clk 00:23:46]} {[%emt 00:00:28]} c5 {[%clk 00:07:14]} {[%emt 00:00:36]} 39.
bxc5 {[%clk 00:23:22]} {[%emt 00:00:54]} c6 {[%clk 00:06:45]} {[%emt 00:00:59]}
40. Rd8 {[%clk 00:23:47]} {[%emt 00:00:05]} Ra7 {[%clk 00:06:45]} {[%emt
00:00:30]} 41. Rd6+ {[%clk 00:23:47]} {[%emt 00:00:30]} Kf5 {[%clk 00:07:04]}
{[%emt 00:00:10]} 42. Rxc6 {[%clk 00:24:13]} {[%emt 00:00:04]} Rd7 {[%clk
00:06:52]} {[%emt 00:00:42]} 43. Rc8 {[%clk 00:23:44]} {[%emt 00:01:00]} Ke6
{[%clk 00:06:42]} {[%emt 00:00:40]} 44. Rf8 {[%clk 00:23:39]} {[%emt 00:00:35]}
Kd5 {[%clk 00:06:01]} {[%emt 00:01:11]} 45. c6 {[%clk 00:22:32]} {[%emt
00:01:37]} Kxc6 {[%clk 00:06:14]} {[%emt 00:00:17]} 46. Rf6+ {[%clk 00:23:01]}
{[%emt 00:00:01]} Kc5 {[%clk 00:06:22]} {[%emt 00:00:22]} 47. Rxg6 {[%clk
00:23:13]} {[%emt 00:00:18]} Rd2 {[%clk 00:06:17]} {[%emt 00:00:35]} 48. Rf6
{[%clk 00:23:29]} {[%emt 00:00:14]} Rd3+ {[%clk 00:06:33]} {[%emt 00:00:14]} 49.
Kc2 {[%clk 00:23:36]} {[%emt 00:00:23]} Ra3 {[%clk 00:06:57]} {[%emt 00:00:06]}
50. Rf5 {[%clk 00:23:56]} {[%emt 00:00:10]} Kd5 {[%clk 00:07:20]} {[%emt
00:00:06]} 51. Kb2 {[%clk 00:23:48]} {[%emt 00:00:38]} Rxa4 {[%clk 00:07:31]}
{[%emt 00:00:20]} 52. Rxh5 {[%clk 00:24:09]} {[%emt 00:00:09]} Ra8 {[%clk
00:07:28]} {[%emt 00:00:33]} 53. Rf5 {[%clk 00:24:10]} {[%emt 00:00:29]} Ke6
{[%clk 00:07:52]} {[%emt 00:00:06]} 54. g4 {[%clk 00:24:32]} {[%emt 00:00:08]}
Rg8 {[%clk 00:08:15]} {[%emt 00:00:05]} 55. f3 {[%clk 00:25:00]} {[%emt
00:00:03]} exf3 {[%clk 00:08:24]} {[%emt 00:00:21]} 56. gxf3 {[%clk 00:25:29]}
{[%emt 00:00:02]} e4 {[%clk 00:08:27]} {[%emt 00:00:27]} 57. fxe4 {[%clk
00:25:34]} {[%emt 00:00:25]} Rxg4 {[%clk 00:08:54]} {[%emt 00:00:03]} 58. Kc2
{[%clk 00:22:07]} {[%emt 00:03:57]} Rxe4 {[%clk 00:09:15]} {[%emt 00:00:09]} 59.
Rf8 {[%clk 00:22:34]} {[%emt 00:00:02]} Ke7 {[%clk 00:08:21]} {[%emt 00:01:25]}
60. Rf3 {[%clk 00:22:56]} {[%emt 00:00:07]} Kd6 {[%clk 00:08:11]} {[%emt
00:00:41]} 61. Kd3 {[%clk 00:23:14]} {[%emt 00:00:12]} Ke5 {[%clk 00:08:00]}
{[%emt 00:00:41]} 62. Rf8 {[%clk 00:23:25]} {[%emt 00:00:18]} Ra4 {[%clk
00:07:53]} {[%emt 00:00:37]} 63. Rd8 {[%clk 00:23:45]} {[%emt 00:00:11]} Ra3+
{[%clk 00:07:43]} {[%emt 00:00:40]} 64. Ke2 {[%clk 00:24:13]} {[%emt 00:00:02]}
Ra4 {[%clk 00:07:34]} {[%emt 00:00:37]} 65. Re8+ {[%clk 00:24:22]} {[%emt
00:00:23]} Kf5 {[%clk 00:07:42]} {[%emt 00:00:22]} 66. Kf3 {[%clk 00:24:48]}
{[%emt 00:00:04]} Rb4 {[%clk 00:07:49]} {[%emt 00:00:23]} 67. Rc8 {[%clk
00:24:47]} {[%emt 00:00:31]} Ke5 {[%emt 00:00:53]} 68. Rc5+ {[%clk 00:25:12]}
Kd6 {[%clk 00:07:45]} {[%emt 00:00:16]} 69. Rh5 {[%clk 00:25:37]} {[%emt
00:00:05]} Ke6 {[%clk 00:07:53]} {[%emt 00:00:22]} 70. e4 {[%clk 00:26:02]}
{[%emt 00:00:04]} Rb8 {[%clk 00:07:44]} {[%emt 00:00:40]} 71. Rf5 {[%clk
00:26:19]} {[%emt 00:00:12]} Rb4 {[%clk 00:07:44]} {[%emt 00:00:30]} 72. Kf4
{[%clk 00:26:44]} {[%emt 00:00:05]} Rd4 {[%clk 00:07:56]} {[%emt 00:00:18]} 73.
Rh5 {[%clk 00:25:23]} {[%emt 00:01:51]} Kf6 {[%clk 00:06:27]} {[%emt 00:02:00]}
74. Rh6+ {[%clk 00:25:47]} {[%emt 00:00:06]} Kg7 {[%clk 00:06:52]} {[%emt
00:00:05]} 75. Rb6 {[%clk 00:26:15]} {[%emt 00:00:03]} Rd1 {[%clk 00:06:50]}
{[%emt 00:00:31]} 76. Kf5 {[%clk 00:26:11]} {[%emt 00:00:34]} Rf1+ {[%clk
00:07:11]} {[%emt 00:00:09]} 77. Ke5 {[%clk 00:26:27]} {[%emt 00:00:14]} Re1
{[%clk 00:07:31]} {[%emt 00:00:09]} 78. Rb7+ {[%clk 00:26:51]} {[%emt
00:00:06]} Kg6 {[%clk 00:07:50]} {[%emt 00:00:11]} 79. Re7 {[%clk 00:26:07]}
{[%emt 00:01:14]} Kg5 {[%clk 00:08:14]} {[%emt 00:00:06]} 80. Rg7 {[%clk
00:26:06]} {[%emt 00:00:31]} Kh6 {[%clk 00:08:31]} {[%emt 00:00:14]} 81. Rg2
{[%clk 00:25:26]} {[%emt 00:01:09]} Kh5 {[%clk 00:07:56]} {[%emt 00:01:05]} 82.
Kf5 {[%clk 00:25:40]} {[%emt 00:00:16]} Rf1+ {[%clk 00:08:22]} {[%emt
00:00:05]} 83. Ke6 {[%clk 00:26:07]} {[%emt 00:00:03]} 1-0

[Event "Vegagatan O1800 RPD"]
[Site "Goteborgs Schackcentrum, Vegatan 20, Gothenburg, Sweden"]
[Date "2025.05.03"]
[Round "2.4"]
[White "Christoforidis, Nicolas"]
[Black "Klouda, James"]
[Result "0-1"]
[TimeControl "29 minutes + 30 seconds per move from move one"]
[WhiteFideId "1789180"]
[BlackFideId "1795759"]
[WhiteElo "1829"]
[BlackElo "1814"]

1. d4 {[%clk 00:29:46]} {[%emt 00:00:05]} d6 {[%clk 00:29:57]} {[%emt
00:00:12]} 2. Bf4 {[%clk 00:30:04]} {[%emt 00:00:12]} Nf6 {[%clk 00:30:11]}
{[%emt 00:00:15]} 3. e3 {[%clk 00:29:48]} {[%emt 00:00:46]} g6 {[%clk
00:30:15]} {[%emt 00:00:27]} 4. Be2 {[%clk 00:29:34]} {[%emt 00:00:44]} Bg7
{[%clk 00:30:14]} {[%emt 00:00:31]} 5. Nd2 {[%clk 00:29:35]} {[%emt 00:00:29]}
Bf5 {[%clk 00:29:35]} {[%emt 00:01:09]} 6. h3 {[%clk 00:28:27]} {[%emt
00:01:37]} Nbd7 {[%clk 00:29:26]} {[%emt 00:00:40]} 7. Ngf3 {[%clk 00:27:27]}
{[%emt 00:01:29]} a6 {[%clk 00:28:56]} {[%emt 00:01:01]} 8. c3 {[%clk
00:24:18]} {[%emt 00:03:39]} c5 {[%clk 00:28:57]} {[%emt 00:00:29]} 9. Nh4
{[%clk 00:22:37]} {[%emt 00:02:10]} Be4 {[%clk 00:27:58]} {[%emt 00:01:29]} 10.
Nxe4 {[%clk 00:21:30]} {[%emt 00:01:37]} Nxe4 {[%clk 00:28:18]} {[%emt
00:00:10]} 11. Nf3 {[%clk 00:21:03]} {[%emt 00:00:57]} b5 {[%clk 00:26:38]}
{[%emt 00:02:10]} 12. O-O {[%clk 00:20:08]} {[%emt 00:01:25]} d5 {[%clk
00:23:39]} {[%emt 00:03:29]} 13. Qc2 {[%clk 00:18:51]} {[%emt 00:01:47]} e6
{[%clk 00:20:48]} {[%emt 00:03:22]} 14. a4 {[%clk 00:17:14]} {[%emt 00:02:08]}
c4 {[%clk 00:19:27]} {[%emt 00:01:50]} 15. b3 {[%clk 00:13:18]} {[%emt
00:04:26]} Ndf6 {[%clk 00:18:07]} {[%emt 00:01:49]} 16. bxc4 {[%clk 00:12:45]}
{[%emt 00:01:04]} bxc4 {[%clk 00:18:21]} {[%emt 00:00:16]} 17. Rab1 {[%clk
00:12:02]} {[%emt 00:01:13]} a5 {[%clk 00:17:27]} {[%emt 00:01:24]} 18. Rb2
{[%clk 00:11:40]} {[%emt 00:00:51]} O-O {[%clk 00:17:48]} {[%emt 00:00:09]} 19.
Rfb1 {[%clk 00:11:47]} {[%emt 00:00:24]} Nd7 {[%clk 00:16:50]} {[%emt
00:01:27]} 20. Rb7 {[%clk 00:10:19]} {[%emt 00:01:58]} Qe7 {[%clk 00:12:34]}
{[%emt 00:04:46]} 21. Ne5 {[%clk 00:09:23]} {[%emt 00:01:26]} Bxe5 {[%clk
00:08:16]} {[%emt 00:04:48]} 22. Bxe5 {[%clk 00:09:12]} {[%emt 00:00:41]} Qh4
{[%clk 00:08:32]} {[%emt 00:00:14]} 23. g3 {[%clk 00:09:02]} {[%emt 00:00:40]}
Qd8 {[%clk 00:05:42]} {[%emt 00:03:20]} 24. Bc7 {[%clk 00:08:27]} {[%emt
00:01:05]} Qf6 {[%clk 00:05:30]} {[%emt 00:00:42]} 25. f3 {[%clk 00:06:00]}
{[%emt 00:02:57]} Ng5 {[%clk 00:05:09]} {[%emt 00:00:51]} 26. Kg2 {[%clk
00:06:17]} {[%emt 00:00:13]} e5 {[%clk 00:05:11]} {[%emt 00:00:29]} 27. h4
{[%clk 00:04:55]} {[%emt 00:01:51]} Ne6 {[%clk 00:05:20]} {[%emt 00:00:21]} 28.
Bd6 {[%clk 00:04:53]} {[%emt 00:00:33]} Rfd8 {[%clk 00:04:33]} {[%emt
00:01:16]} 29. Ba3 {[%clk 00:03:59]} {[%emt 00:01:25]} g5 {[%clk 00:03:09]}
{[%emt 00:01:54]} 30. hxg5 {[%clk 00:04:07]} {[%emt 00:00:22]} Nxg5 {[%clk
00:03:00]} {[%emt 00:00:38]} 31. Rh1 {[%clk 00:03:52]} {[%emt 00:00:44]} Rab8
{[%clk 00:03:03]} {[%emt 00:00:28]} 32. Rxb8 {[%clk 00:04:10]} {[%emt
00:00:14]} Rxb8 {[%clk 00:03:28]} {[%emt 00:00:04]} 33. f4 {[%clk 00:04:21]}
{[%emt 00:00:18]} exf4 {[%clk 00:03:13]} {[%emt 00:00:45]} 34. exf4 {[%clk
00:04:02]} {[%emt 00:00:50]} Ne4 {[%clk 00:03:24]} {[%emt 00:00:18]} 35. Bf3
{[%clk 00:03:46]} {[%emt 00:00:44]} Qg6 {[%clk 00:03:27]} {[%emt 00:00:29]} 36.
Bxe4 {[%clk 00:03:23]} {[%emt 00:00:54]} Qxe4+ {[%clk 00:03:40]} {[%emt
00:00:17]} 37. Qxe4 {[%clk 00:03:51]} {[%emt 00:00:02]} dxe4 {[%clk 00:04:07]}
{[%emt 00:00:02]} 38. Rh5 {[%clk 00:02:49]} {[%emt 00:01:32]} Rb3 {[%clk
00:04:19]} {[%emt 00:00:19]} 39. Rg5+ {[%clk 00:02:41]} {[%emt 00:00:37]} Kh8
{[%clk 00:04:47]} {[%emt 00:00:02]} 40. Be7 {[%clk 00:02:49]} {[%emt 00:00:22]}
f6 {[%clk 00:04:41]} {[%emt 00:00:36]} 41. Rd5 {[%clk 00:02:47]} {[%emt
00:00:32]} Nb6 {[%clk 00:03:17]} {[%emt 00:01:55]} 42. Bxf6+ {[%clk 00:02:56]}
{[%emt 00:00:20]} Kg8 {[%clk 00:03:44]} {[%emt 00:00:02]} 43. Rxa5 {[%clk
00:02:51]} {[%emt 00:00:37]} e3 {[%clk 00:03:29]} {[%emt 00:00:45]} 44. Kf3
{[%clk 00:02:17]} {[%emt 00:01:04]} Rxc3 {[%clk 00:03:49]} {[%emt 00:00:09]} 45.
Re5 {[%clk 00:01:56]} {[%emt 00:00:51]} Rd3 {[%clk 00:03:49]} {[%emt 00:00:31]}
46. a5 {[%clk 00:01:59]} {[%emt 00:00:27]} Nd7 {[%clk 00:03:57]} {[%emt
00:00:22]} 47. Re7 {[%clk 00:02:06]} {[%emt 00:00:19]} Nxf6 {[%clk 00:04:16]}
{[%emt 00:00:13]} 48. a6 {[%clk 00:02:30]} {[%emt 00:00:08]} Ra3 {[%clk
00:04:44]} {[%emt 00:00:02]} 49. a7 {[%clk 00:02:37]} {[%emt 00:00:23]} c3
{[%clk 00:04:26]} {[%emt 00:00:47]} 50. Rc7 {[%clk 00:02:53]} {[%emt 00:00:15]}
c2 {[%clk 00:03:09]} {[%emt 00:01:47]} 51. Rxc2 {[%clk 00:02:50]} {[%emt
00:00:33]} Rxa7 {[%clk 00:03:31]} {[%emt 00:00:08]} 52. g4 {[%clk 00:02:28]}
{[%emt 00:00:52]} Re7 {[%clk 00:03:22]} {[%emt 00:00:39]} 53. g5 {[%clk
00:02:05]} {[%emt 00:00:52]} Nd5 {[%clk 00:03:44]} {[%emt 00:00:09]} 54. f5
{[%clk 00:01:55]} {[%emt 00:00:40]} Kf7 {[%clk 00:03:16]} {[%emt 00:00:57]} 55.
Rg2 {[%clk 00:01:34]} {[%emt 00:00:51]} Nc3 {[%clk 00:03:28]} {[%emt 00:00:19]}
56. g6+ {[%clk 00:01:18]} {[%emt 00:00:46]} hxg6 {[%clk 00:03:54]} {[%emt
00:00:04]} 57. fxg6+ {[%emt 00:00:02]} Kg7 {[%clk 00:04:19]} {[%emt 00:00:03]}
58. Rg1 {[%clk 00:01:58]} {[%emt 00:00:19]} e2 {[%clk 00:04:33]} {[%emt
00:00:17]} 59. Kf2 {[%clk 00:01:59]} {[%emt 00:00:28]} Nd1+ {[%clk 00:04:49]}
{[%emt 00:00:14]} 60. Ke1 {[%clk 00:02:21]} {[%emt 00:00:07]} Nc3 {[%clk
00:04:59]} {[%emt 00:00:21]} 61. Rg3 {[%clk 00:02:25]} {[%emt 00:00:25]} Nd5
{[%clk 00:05:12]} {[%emt 00:00:18]} 62. Rg1 {[%clk 00:01:58]} {[%emt 00:00:58]}
Nf4 {[%clk 00:05:38]} {[%emt 00:00:03]} 63. Kd2 {[%clk 00:02:19]} {[%emt
00:00:09]} Ng2 {[%clk 00:05:38]} {[%emt 00:00:31]} 0-1